Workbook

Sheet QuickBooks Desktop Export Tips

Sheet Sheet1
I1: Type | K1: Date | M1: Num | O1: Adj | Q1: Name | S1: Memo | U1: Class | W1: Clr | Y1: Split | AA1: Debit | AC1: Credit | AE1: Balance
B2: Ordinary Income/Expense
D3: Income
E4: Community Center
F5: Rental
I6: Deposit | K6: 2026-04-13 | M6: 2527 | S6: Monthly rent | U6: community center | Y6: CFCU Checking | AC6: 25 | AE6: 25
I7: Deposit | K7: 2026-04-17 | M7: 2530 | S7: monthly rent | U7: community center | Y7: CFCU Checking | AC7: 25 | AE7: 50
F8: Total Rental | AA8: =ROUND(SUM(AA5:AA7),5) -> 0 | AC8: =ROUND(SUM(AC5:AC7),5) -> 50 | AE8: =AE7 -> 50
F9: Community Center - Other
I10: Deposit | K10: 2026-04-13 | M10: 433 | S10: Community center rental deposit | U10: community center | Y10: CFCU Checking | AC10: 100 | AE10: 100
F11: Total Community Center - Other | AA11: =ROUND(SUM(AA9:AA10),5) -> 0 | AC11: =ROUND(SUM(AC9:AC10),5) -> 100 | AE11: =AE10 -> 100
E12: Total Community Center | AA12: =ROUND(AA8+AA11,5) -> 0 | AC12: =ROUND(AC8+AC11,5) -> 150 | AE12: =ROUND(AE8+AE11,5) -> 150
E13: Services
I14: Invoice | K14: 2026-04-07 | M14: 1697 | S14: -MULTIPLE- | U14: -MULTIPLE- | Y14: Accounts Receivable | AC14: 126.9 | AE14: 126.9
I15: Invoice | K15: 2026-05-05 | M15: 1743 | S15: -MULTIPLE- | U15: -MULTIPLE- | Y15: Accounts Receivable | AC15: 182.41 | AE15: 309.31
I16: Invoice | K16: 2026-05-05 | M16: 1744 | S16: -MULTIPLE- | U16: -MULTIPLE- | Y16: Accounts Receivable | AC16: 143.89 | AE16: 453.2
I17: Invoice | K17: 2026-05-05 | M17: 1745 | S17: -MULTIPLE- | U17: -MULTIPLE- | Y17: Accounts Receivable | AC17: 124.55 | AE17: 577.75
I18: Invoice | K18: 2026-05-05 | M18: 1746 | S18: Water | U18: Water | Y18: Accounts Receivable | AC18: 62.28 | AE18: 640.03
I19: Invoice | K19: 2026-05-05 | M19: 1747 | S19: Water | U19: Water | Y19: Accounts Receivable | AC19: 110.66 | AE19: 750.69
I20: Invoice | K20: 2026-05-05 | M20: 1748 | S20: -MULTIPLE- | U20: -MULTIPLE- | Y20: Accounts Receivable | AC20: 131.83 | AE20: 882.52
I21: Invoice | K21: 2026-05-05 | M21: 1749 | S21: -MULTIPLE- | U21: -MULTIPLE- | Y21: Accounts Receivable | AC21: 62.28 | AE21: 944.8
I22: Invoice | K22: 2026-05-05 | M22: 1750 | S22: -MULTIPLE- | U22: -MULTIPLE- | Y22: Accounts Receivable | AC22: 267.88 | AE22: 1212.68
I23: Invoice | K23: 2026-05-05 | M23: 1751 | S23: -MULTIPLE- | U23: -MULTIPLE- | Y23: Accounts Receivable | AC23: 126.67 | AE23: 1339.35
I24: Invoice | K24: 2026-05-05 | M24: 1752 | S24: -MULTIPLE- | U24: -MULTIPLE- | Y24: Accounts Receivable | AC24: 137.78 | AE24: 1477.13
I25: Invoice | K25: 2026-05-05 | M25: 1753 | S25: Water | U25: Water | Y25: Accounts Receivable | AC25: 35.78 | AE25: 1512.91
I26: Invoice | K26: 2026-05-05 | M26: 1754 | S26: -MULTIPLE- | U26: -MULTIPLE- | Y26: Accounts Receivable | AC26: 175.18 | AE26: 1688.09
I27: Invoice | K27: 2026-05-05 | M27: 1755 | S27: -MULTIPLE- | U27: -MULTIPLE- | Y27: Accounts Receivable | AC27: 155.2 | AE27: 1843.29
I28: Invoice | K28: 2026-05-05 | M28: 1756 | S28: -MULTIPLE- | U28: -MULTIPLE- | Y28: Accounts Receivable | AC28: 142.61 | AE28: 1985.9
I29: Invoice | K29: 2026-05-05 | M29: 1757 | S29: -MULTIPLE- | U29: -MULTIPLE- | Y29: Accounts Receivable | AC29: 140.69 | AE29: 2126.59
I30: Invoice | K30: 2026-05-05 | M30: 1758 | S30: -MULTIPLE- | U30: -MULTIPLE- | Y30: Accounts Receivable | AC30: 137.24 | AE30: 2263.83
I31: Invoice | K31: 2026-05-05 | M31: 1759 | S31: -MULTIPLE- | U31: -MULTIPLE- | Y31: Accounts Receivable | AC31: 124.55 | AE31: 2388.38
I32: Invoice | K32: 2026-05-05 | M32: 1760 | S32: Wastewater | U32: wastewater | Y32: Accounts Receivable | AC32: 53 | AE32: 2441.38
I33: Invoice | K33: 2026-05-05 | M33: 1761 | S33: -MULTIPLE- | U33: -MULTIPLE- | Y33: Accounts Receivable | AC33: 129.62 | AE33: 2571
I34: Invoice | K34: 2026-05-05 | M34: 1762 | S34: -MULTIPLE- | U34: -MULTIPLE- | Y34: Accounts Receivable | AC34: 134.69 | AE34: 2705.69
I35: Invoice | K35: 2026-05-05 | M35: 1763 | S35: Water | U35: Water | Y35: Accounts Receivable | AC35: 104.46 | AE35: 2810.15
I36: Invoice | K36: 2026-05-05 | M36: 1764 | S36: -MULTIPLE- | U36: -MULTIPLE- | Y36: Accounts Receivable | AC36: 148.22 | AE36: 2958.37
I37: Invoice | K37: 2026-05-05 | M37: 1765 | S37: -MULTIPLE- | U37: -MULTIPLE- | Y37: Accounts Receivable | AC37: 124.55 | AE37: 3082.92
I38: Invoice | K38: 2026-05-05 | M38: 1766 | S38: -MULTIPLE- | U38: -MULTIPLE- | Y38: Accounts Receivable | AC38: 192.1 | AE38: 3275.02
I39: Invoice | K39: 2026-05-05 | M39: 1767 | S39: -MULTIPLE- | U39: -MULTIPLE- | Y39: Accounts Receivable | AC39: 152 | AE39: 3427.02
I40: Invoice | K40: 2026-05-05 | M40: 1768 | S40: -MULTIPLE- | U40: -MULTIPLE- | Y40: Accounts Receivable | AC40: 127.31 | AE40: 3554.33
I41: Invoice | K41: 2026-05-05 | M41: 1769 | S41: -MULTIPLE- | U41: -MULTIPLE- | Y41: Accounts Receivable | AC41: 139.75 | AE41: 3694.08
I42: Invoice | K42: 2026-05-05 | M42: 1770 | S42: -MULTIPLE- | U42: -MULTIPLE- | Y42: Accounts Receivable | AC42: 139.01 | AE42: 3833.09
I43: Invoice | K43: 2026-05-05 | M43: 1771 | S43: -MULTIPLE- | U43: -MULTIPLE- | Y43: Accounts Receivable | AC43: 151.61 | AE43: 3984.7
I44: Invoice | K44: 2026-05-05 | M44: 1772 | S44: -MULTIPLE- | U44: -MULTIPLE- | Y44: Accounts Receivable | AC44: 145.07 | AE44: 4129.77
I45: Invoice | K45: 2026-05-05 | M45: 1773 | S45: -MULTIPLE- | U45: -MULTIPLE- | Y45: Accounts Receivable | AC45: 143.15 | AE45: 4272.92
I46: Invoice | K46: 2026-05-05 | M46: 1774 | S46: -MULTIPLE- | U46: -MULTIPLE- | Y46: Accounts Receivable | AC46: 141.38 | AE46: 4414.3
I47: Invoice | K47: 2026-05-05 | M47: 1775 | S47: -MULTIPLE- | U47: -MULTIPLE- | Y47: Accounts Receivable | AC47: 127.21 | AE47: 4541.51
I48: Invoice | K48: 2026-05-05 | M48: 1776 | S48: -MULTIPLE- | U48: -MULTIPLE- | Y48: Accounts Receivable | AC48: 131.63 | AE48: 4673.14
I49: Invoice | K49: 2026-05-05 | M49: 1777 | S49: -MULTIPLE- | U49: -MULTIPLE- | Y49: Accounts Receivable | AC49: 141.92 | AE49: 4815.06
I50: Invoice | K50: 2026-05-05 | M50: 1778 | S50: -MULTIPLE- | U50: -MULTIPLE- | Y50: Accounts Receivable | AC50: 62.28 | AE50: 4877.34
I51: Invoice | K51: 2026-05-05 | M51: 1779 | S51: -MULTIPLE- | U51: -MULTIPLE- | Y51: Accounts Receivable | AC51: 62.28 | AE51: 4939.62
I52: Invoice | K52: 2026-05-05 | M52: 1780 | S52: -MULTIPLE- | U52: -MULTIPLE- | Y52: Accounts Receivable | AC52: 132.23 | AE52: 5071.85
I53: Invoice | K53: 2026-05-05 | M53: 1781 | S53: -MULTIPLE- | U53: -MULTIPLE- | Y53: Accounts Receivable | AC53: 155.6 | AE53: 5227.45
I54: Invoice | K54: 2026-05-05 | M54: 1782 | S54: -MULTIPLE- | U54: -MULTIPLE- | Y54: Accounts Receivable | AC54: 141.33 | AE54: 5368.78
I55: Invoice | K55: 2026-05-05 | M55: 1783 | S55: -MULTIPLE- | U55: -MULTIPLE- | Y55: Accounts Receivable | AC55: 147.92 | AE55: 5516.7
I56: Invoice | K56: 2026-05-05 | M56: 1784 | S56: -MULTIPLE- | U56: -MULTIPLE- | Y56: Accounts Receivable | AC56: 127.11 | AE56: 5643.81
I57: Invoice | K57: 2026-05-05 | M57: 1785 | S57: -MULTIPLE- | U57: -MULTIPLE- | Y57: Accounts Receivable | AC57: 171.83 | AE57: 5815.64
I58: Invoice | K58: 2026-05-05 | M58: 1786 | S58: -MULTIPLE- | U58: -MULTIPLE- | Y58: Accounts Receivable | AC58: 134.98 | AE58: 5950.62
I59: Invoice | K59: 2026-05-05 | M59: 1787 | S59: -MULTIPLE- | U59: -MULTIPLE- | Y59: Accounts Receivable | AC59: 273.98 | AE59: 6224.6
I60: Invoice | K60: 2026-05-05 | M60: 1788 | S60: -MULTIPLE- | U60: -MULTIPLE- | Y60: Accounts Receivable | AC60: 146.49 | AE60: 6371.09
I61: Invoice | K61: 2026-05-05 | M61: 1789 | S61: -MULTIPLE- | U61: -MULTIPLE- | Y61: Accounts Receivable | AC61: 124.65 | AE61: 6495.74
I62: Invoice | K62: 2026-05-05 | M62: 1790 | S62: Water | U62: Water | Y62: Accounts Receivable | AC62: 35.78 | AE62: 6531.52
I63: Invoice | K63: 2026-05-05 | M63: 1791 | S63: -MULTIPLE- | U63: -MULTIPLE- | Y63: Accounts Receivable | AC63: 160.37 | AE63: 6691.89
I64: Invoice | K64: 2026-05-05 | M64: 1792 | S64: -MULTIPLE- | U64: -MULTIPLE- | Y64: Accounts Receivable | AC64: 143 | AE64: 6834.89
I65: Invoice | K65: 2026-05-05 | M65: 1793 | S65: -MULTIPLE- | U65: -MULTIPLE- | Y65: Accounts Receivable | AC65: 150.23 | AE65: 6985.12
I66: Invoice | K66: 2026-05-05 | M66: 1794 | S66: -MULTIPLE- | U66: -MULTIPLE- | Y66: Accounts Receivable | AC66: 62.28 | AE66: 7047.4
I67: Invoice | K67: 2026-05-05 | M67: 1795 | S67: -MULTIPLE- | U67: -MULTIPLE- | Y67: Accounts Receivable | AC67: 159.97 | AE67: 7207.37
I68: Invoice | K68: 2026-05-05 | M68: 1796 | S68: -MULTIPLE- | U68: -MULTIPLE- | Y68: Accounts Receivable | AC68: 62.28 | AE68: 7269.65
I69: Invoice | K69: 2026-05-05 | M69: 1797 | S69: -MULTIPLE- | U69: -MULTIPLE- | Y69: Accounts Receivable | AC69: 137.24 | AE69: 7406.89
I70: Invoice | K70: 2026-05-05 | M70: 1798 | S70: -MULTIPLE- | U70: -MULTIPLE- | Y70: Accounts Receivable | AC70: 170.4 | AE70: 7577.29
I71: Invoice | K71: 2026-05-05 | M71: 1799 | S71: -MULTIPLE- | U71: -MULTIPLE- | Y71: Accounts Receivable | AC71: 152.94 | AE71: 7730.23
I72: Invoice | K72: 2026-05-05 | M72: 1800 | S72: -MULTIPLE- | U72: -MULTIPLE- | Y72: Accounts Receivable | AC72: 172.62 | AE72: 7902.85
I73: Invoice | K73: 2026-05-05 | M73: 1801 | S73: -MULTIPLE- | U73: -MULTIPLE- | Y73: Accounts Receivable | AC73: 166.07 | AE73: 8068.92
I74: Invoice | K74: 2026-05-05 | M74: 1802 | S74: -MULTIPLE- | U74: -MULTIPLE- | Y74: Accounts Receivable | AC74: 220.11 | AE74: 8289.03
I75: Invoice | K75: 2026-05-05 | M75: 1803 | S75: -MULTIPLE- | U75: -MULTIPLE- | Y75: Accounts Receivable | AC75: 130.5 | AE75: 8419.53
I76: Invoice | K76: 2026-05-05 | M76: 1804 | S76: -MULTIPLE- | U76: -MULTIPLE- | Y76: Accounts Receivable | AC76: 131.59 | AE76: 8551.12
I77: Invoice | K77: 2026-05-05 | M77: 1805 | S77: -MULTIPLE- | U77: -MULTIPLE- | Y77: Accounts Receivable | AC77: 189.49 | AE77: 8740.61
I78: Invoice | K78: 2026-05-05 | M78: 1806 | S78: -MULTIPLE- | U78: -MULTIPLE- | Y78: Accounts Receivable | AC78: 265.32 | AE78: 9005.93
I79: Invoice | K79: 2026-05-05 | M79: 1807 | S79: -MULTIPLE- | U79: -MULTIPLE- | Y79: Accounts Receivable | AC79: 124.55 | AE79: 9130.48
I80: Invoice | K80: 2026-05-05 | M80: 1808 | S80: -MULTIPLE- | U80: -MULTIPLE- | Y80: Accounts Receivable | AC80: 155.64 | AE80: 9286.12
I81: Invoice | K81: 2026-05-05 | M81: 1809 | S81: -MULTIPLE- | U81: -MULTIPLE- | Y81: Accounts Receivable | AC81: 129.57 | AE81: 9415.69
I82: Invoice | K82: 2026-05-05 | M82: 1810 | S82: -MULTIPLE- | U82: -MULTIPLE- | Y82: Accounts Receivable | AC82: 124.55 | AE82: 9540.24
I83: Invoice | K83: 2026-05-05 | M83: 1811 | S83: -MULTIPLE- | U83: -MULTIPLE- | Y83: Accounts Receivable | AC83: 140.88 | AE83: 9681.12
I84: Invoice | K84: 2026-05-05 | M84: 1812 | S84: -MULTIPLE- | U84: -MULTIPLE- | Y84: Accounts Receivable | AC84: 133.85 | AE84: 9814.97
I85: Invoice | K85: 2026-05-05 | M85: 1813 | S85: -MULTIPLE- | U85: -MULTIPLE- | Y85: Accounts Receivable | AC85: 158.74 | AE85: 9973.71
I86: Invoice | K86: 2026-05-05 | M86: 1814 | S86: -MULTIPLE- | U86: -MULTIPLE- | Y86: Accounts Receivable | AC86: 147.58 | AE86: 10121.29
I87: Invoice | K87: 2026-05-05 | M87: 1815 | S87: -MULTIPLE- | U87: -MULTIPLE- | Y87: Accounts Receivable | AC87: 124.55 | AE87: 10245.84
I88: Invoice | K88: 2026-05-05 | M88: 1816 | S88: Water | U88: Water | Y88: Accounts Receivable | AC88: 124.56 | AE88: 10370.4
I89: Invoice | K89: 2026-05-05 | M89: 1817 | S89: -MULTIPLE- | U89: -MULTIPLE- | Y89: Accounts Receivable | AC89: 149.81 | AE89: 10520.21
I90: Invoice | K90: 2026-05-05 | M90: 1818 | S90: Water | U90: Water | Y90: Accounts Receivable | AC90: 35.78 | AE90: 10555.99
I91: Invoice | K91: 2026-05-05 | M91: 1819 | S91: -MULTIPLE- | U91: -MULTIPLE- | Y91: Accounts Receivable | AC91: 629.36 | AE91: 11185.35
I92: Invoice | K92: 2026-05-05 | M92: 1820 | S92: -MULTIPLE- | U92: -MULTIPLE- | Y92: Accounts Receivable | AC92: 226.6 | AE92: 11411.95
I93: Invoice | K93: 2026-05-05 | M93: 1821 | S93: -MULTIPLE- | U93: -MULTIPLE- | Y93: Accounts Receivable | AC93: 124.65 | AE93: 11536.6
I94: Invoice | K94: 2026-05-05 | M94: 1822 | S94: -MULTIPLE- | U94: -MULTIPLE- | Y94: Accounts Receivable | AC94: 124.55 | AE94: 11661.15
I95: Invoice | K95: 2026-05-05 | M95: 1823 | S95: -MULTIPLE- | U95: -MULTIPLE- | Y95: Accounts Receivable | AC95: 157.27 | AE95: 11818.42
I96: Invoice | K96: 2026-05-05 | M96: 1824 | S96: -MULTIPLE- | U96: -MULTIPLE- | Y96: Accounts Receivable | AC96: 140 | AE96: 11958.42
I97: Invoice | K97: 2026-05-05 | M97: 1825 | S97: -MULTIPLE- | U97: -MULTIPLE- | Y97: Accounts Receivable | AC97: 132.32 | AE97: 12090.74
I98: Invoice | K98: 2026-05-05 | M98: 1826 | S98: -MULTIPLE- | U98: -MULTIPLE- | Y98: Accounts Receivable | AC98: 147.23 | AE98: 12237.97
I99: Invoice | K99: 2026-05-05 | M99: 1827 | S99: -MULTIPLE- | U99: -MULTIPLE- | Y99: Accounts Receivable | AC99: 124.55 | AE99: 12362.52
I100: Invoice | K100: 2026-05-05 | M100: 1828 | S100: -MULTIPLE- | U100: -MULTIPLE- | Y100: Accounts Receivable | AC100: 142.41 | AE100: 12504.93
I101: Invoice | K101: 2026-05-05 | M101: 1829 | S101: -MULTIPLE- | U101: -MULTIPLE- | Y101: Accounts Receivable | AC101: 136.26 | AE101: 12641.19
I102: Invoice | K102: 2026-05-05 | M102: 1830 | S102: -MULTIPLE- | U102: -MULTIPLE- | Y102: Accounts Receivable | AC102: 62.28 | AE102: 12703.47
I103: Invoice | K103: 2026-05-05 | M103: 1831 | S103: -MULTIPLE- | U103: -MULTIPLE- | Y103: Accounts Receivable | AC103: 128.83 | AE103: 12832.3
I104: Invoice | K104: 2026-05-05 | M104: 1832 | S104: -MULTIPLE- | U104: -MULTIPLE- | Y104: Accounts Receivable | AC104: 127.65 | AE104: 12959.95
I105: Invoice | K105: 2026-05-05 | M105: 1833 | S105: Water | U105: Water | Y105: Accounts Receivable | AC105: 71.55 | AE105: 13031.5
I106: Invoice | K106: 2026-05-05 | M106: 1834 | S106: Water | U106: Water | Y106: Accounts Receivable | AC106: 72.39 | AE106: 13103.89
I107: Invoice | K107: 2026-05-05 | M107: 1835 | S107: Water | U107: Water | Y107: Accounts Receivable | AC107: 696.94 | AE107: 13800.83
I108: Invoice | K108: 2026-05-05 | M108: 1836 | S108: -MULTIPLE- | U108: -MULTIPLE- | Y108: Accounts Receivable | AC108: 135.13 | AE108: 13935.96
I109: Invoice | K109: 2026-05-05 | M109: 1837 | S109: -MULTIPLE- | U109: -MULTIPLE- | Y109: Accounts Receivable | AC109: 147.23 | AE109: 14083.19
I110: Invoice | K110: 2026-05-05 | M110: 1838 | S110: -MULTIPLE- | U110: -MULTIPLE- | Y110: Accounts Receivable | AC110: 62.28 | AE110: 14145.47
I111: Invoice | K111: 2026-05-05 | M111: 1839 | S111: -MULTIPLE- | U111: -MULTIPLE- | Y111: Accounts Receivable | AC111: 155.6 | AE111: 14301.07
I112: Invoice | K112: 2026-05-05 | M112: 1840 | S112: -MULTIPLE- | U112: -MULTIPLE- | Y112: Accounts Receivable | AC112: 133.7 | AE112: 14434.77
I113: Invoice | K113: 2026-05-05 | M113: 1841 | S113: -MULTIPLE- | U113: -MULTIPLE- | Y113: Accounts Receivable | AC113: 62.28 | AE113: 14497.05
I114: Invoice | K114: 2026-05-05 | M114: 1842 | S114: -MULTIPLE- | U114: -MULTIPLE- | Y114: Accounts Receivable | AC114: 163.27 | AE114: 14660.32
I115: Invoice | K115: 2026-05-05 | M115: 1843 | S115: -MULTIPLE- | U115: -MULTIPLE- | Y115: Accounts Receivable | AC115: 153.92 | AE115: 14814.24
I116: Invoice | K116: 2026-05-05 | M116: 1844 | S116: -MULTIPLE- | U116: -MULTIPLE- | Y116: Accounts Receivable | AC116: 151.22 | AE116: 14965.46
I117: Invoice | K117: 2026-05-05 | M117: 1845 | S117: -MULTIPLE- | U117: -MULTIPLE- | Y117: Accounts Receivable | AC117: 152.94 | AE117: 15118.4
I118: Invoice | K118: 2026-05-05 | M118: 1846 | S118: -MULTIPLE- | U118: -MULTIPLE- | Y118: Accounts Receivable | AC118: 158.69 | AE118: 15277.09
I119: Invoice | K119: 2026-05-05 | M119: 1847 | S119: -MULTIPLE- | U119: -MULTIPLE- | Y119: Accounts Receivable | AC119: 147.33 | AE119: 15424.42
I120: Invoice | K120: 2026-05-05 | M120: 1848 | S120: -MULTIPLE- | U120: -MULTIPLE- | Y120: Accounts Receivable | AC120: 124.85 | AE120: 15549.27
I121: Invoice | K121: 2026-05-05 | M121: 1849 | S121: -MULTIPLE- | U121: -MULTIPLE- | Y121: Accounts Receivable | AC121: 139.01 | AE121: 15688.28
I122: Invoice | K122: 2026-05-05 | M122: 1850 | S122: -MULTIPLE- | U122: -MULTIPLE- | Y122: Accounts Receivable | AC122: 124.55 | AE122: 15812.83
I123: Invoice | K123: 2026-05-05 | M123: 1851 | S123: -MULTIPLE- | U123: -MULTIPLE- | Y123: Accounts Receivable | AC123: 62.28 | AE123: 15875.11
I124: Invoice | K124: 2026-05-05 | M124: 1852 | S124: -MULTIPLE- | U124: -MULTIPLE- | Y124: Accounts Receivable | AC124: 126.67 | AE124: 16001.78
I125: Invoice | K125: 2026-05-05 | M125: 1853 | S125: -MULTIPLE- | U125: -MULTIPLE- | Y125: Accounts Receivable | AC125: 153.92 | AE125: 16155.7
I126: Invoice | K126: 2026-05-05 | M126: 1854 | S126: -MULTIPLE- | U126: -MULTIPLE- | Y126: Accounts Receivable | AC126: 142.56 | AE126: 16298.26
I127: Invoice | K127: 2026-05-05 | M127: 1855 | S127: -MULTIPLE- | U127: -MULTIPLE- | Y127: Accounts Receivable | AC127: 135.82 | AE127: 16434.08
I128: Invoice | K128: 2026-05-05 | M128: 1856 | S128: -MULTIPLE- | U128: -MULTIPLE- | Y128: Accounts Receivable | AC128: 149 | AE128: 16583.08
I129: Invoice | K129: 2026-05-05 | M129: 1857 | S129: -MULTIPLE- | U129: -MULTIPLE- | Y129: Accounts Receivable | AC129: 131.63 | AE129: 16714.71
I130: Invoice | K130: 2026-05-05 | M130: 1858 | S130: -MULTIPLE- | U130: -MULTIPLE- | Y130: Accounts Receivable | AC130: 127.31 | AE130: 16842.02
I131: Invoice | K131: 2026-05-05 | M131: 1859 | S131: -MULTIPLE- | U131: -MULTIPLE- | Y131: Accounts Receivable | AC131: 267.29 | AE131: 17109.31
I132: Invoice | K132: 2026-05-05 | M132: 1860 | S132: -MULTIPLE- | U132: -MULTIPLE- | Y132: Accounts Receivable | AC132: 131.14 | AE132: 17240.45
I133: Invoice | K133: 2026-05-05 | M133: 1861 | S133: -MULTIPLE- | U133: -MULTIPLE- | Y133: Accounts Receivable | AC133: 145.07 | AE133: 17385.52
I134: Invoice | K134: 2026-05-05 | M134: 1862 | S134: -MULTIPLE- | U134: -MULTIPLE- | Y134: Accounts Receivable | AC134: 62.28 | AE134: 17447.8
I135: Invoice | K135: 2026-05-05 | M135: 1863 | S135: -MULTIPLE- | U135: -MULTIPLE- | Y135: Accounts Receivable | AC135: 129.17 | AE135: 17576.97
I136: Invoice | K136: 2026-05-05 | M136: 1864 | S136: -MULTIPLE- | U136: -MULTIPLE- | Y136: Accounts Receivable | AC136: 150.68 | AE136: 17727.65
I137: Invoice | K137: 2026-05-05 | M137: 1865 | S137: -MULTIPLE- | U137: -MULTIPLE- | Y137: Accounts Receivable | AC137: 134.98 | AE137: 17862.63
I138: Invoice | K138: 2026-05-05 | M138: 1866 | S138: -MULTIPLE- | U138: -MULTIPLE- | Y138: Accounts Receivable | AC138: 165.48 | AE138: 18028.11
I139: Invoice | K139: 2026-05-05 | M139: 1867 | S139: -MULTIPLE- | U139: -MULTIPLE- | Y139: Accounts Receivable | AC139: 133.01 | AE139: 18161.12
I140: Invoice | K140: 2026-05-05 | M140: 1868 | S140: -MULTIPLE- | U140: -MULTIPLE- | Y140: Accounts Receivable | AC140: 130.75 | AE140: 18291.87
I141: Invoice | K141: 2026-05-05 | M141: 1869 | S141: -MULTIPLE- | U141: -MULTIPLE- | Y141: Accounts Receivable | AC141: 169.72 | AE141: 18461.59
I142: Invoice | K142: 2026-05-05 | M142: 1870 | S142: -MULTIPLE- | U142: -MULTIPLE- | Y142: Accounts Receivable | AC142: 141.47 | AE142: 18603.06
I143: Invoice | K143: 2026-05-05 | M143: 1871 | S143: -MULTIPLE- | U143: -MULTIPLE- | Y143: Accounts Receivable | AC143: 142.9 | AE143: 18745.96
I144: Invoice | K144: 2026-05-05 | M144: 1872 | S144: -MULTIPLE- | U144: -MULTIPLE- | Y144: Accounts Receivable | AC144: 137.34 | AE144: 18883.3
I145: Invoice | K145: 2026-05-05 | M145: 1873 | S145: -MULTIPLE- | U145: -MULTIPLE- | Y145: Accounts Receivable | AC145: 124.6 | AE145: 19007.9
I146: Invoice | K146: 2026-05-05 | M146: 1874 | S146: -MULTIPLE- | U146: -MULTIPLE- | Y146: Accounts Receivable | AC146: 127.45 | AE146: 19135.35
I147: Invoice | K147: 2026-05-05 | M147: 1875 | S147: -MULTIPLE- | U147: -MULTIPLE- | Y147: Accounts Receivable | AC147: 62.28 | AE147: 19197.63
I148: Invoice | K148: 2026-05-05 | M148: 1876 | S148: -MULTIPLE- | U148: -MULTIPLE- | Y148: Accounts Receivable | AC148: 124.7 | AE148: 19322.33
E149: Total Services | AA149: 0 | AC149: 19322.33 | AE149: 19322.33
D150: Total Income | AA150: =ROUND(AA12+AA149,5) -> 0 | AC150: =ROUND(AC12+AC149,5) -> 19472.33 | AE150: =ROUND(AE12+AE149,5) -> 19472.33
C151: Gross Profit | AA151: =AA150 -> 0 | AC151: =AC150 -> 19472.33 | AE151: =AE150 -> 19472.33
D152: Expense
E153: Office Supplies
F154: Software
I155: Bill | K155: 2026-04-01 | Q155: Streamline | S155: Feb1-Mar1 CA7AC639-0064 | U155: -MULTIPLE- | Y155: Accounts Payable | AA155: 171.87 | AE155: 171.87
I156: Bill | K156: 2026-04-01 | Q156: Streamline. | S156: CA7AC639-0067 | U156: -MULTIPLE- | Y156: Accounts Payable | AA156: 150 | AE156: 321.87
I157: Bill | K157: 2026-04-28 | Q157: Streamline | S157: Feb1-Mar1 CA7AC639-0064 | U157: -MULTIPLE- | Y157: Accounts Payable | AA157: 171.87 | AE157: 493.74
I158: Bill | K158: 2026-04-28 | Q158: Streamline. | S158: CA7AC639-0069 | U158: -MULTIPLE- | Y158: Accounts Payable | AA158: 150 | AE158: 643.74
F159: Total Software | AA159: 643.74 | AC159: 0 | AE159: 643.74
E160: Total Office Supplies | AA160: =AA159 -> 643.74 | AC160: =AC159 -> 0 | AE160: =AE159 -> 643.74
E161: Payroll Expenses
F162: Company Taxes
I163: Paycheck | K163: 2026-04-01 | M163: 10668 | Q163: Arreguin, Daniel J | U163: -MULTIPLE- | Y163: CFCU Checking | AA163: 83.74 | AE163: 83.74
I164: Paycheck | K164: 2026-04-01 | M164: 10669 | Q164: Black, Curren M | U164: -MULTIPLE- | Y164: CFCU Checking | AA164: 72.44 | AE164: 156.18
I165: Paycheck | K165: 2026-04-01 | M165: 10670 | Q165: Hendershot, Elisa | U165: -MULTIPLE- | Y165: CFCU Checking | AA165: 29.68 | AE165: 185.86
I166: Paycheck | K166: 2026-04-01 | M166: 10671 | Q166: Little, Jamie L | U166: -MULTIPLE- | Y166: CFCU Checking | AA166: 273.36 | AE166: 459.22
I167: Paycheck | K167: 2026-04-01 | M167: 10672 | Q167: Teasley, Gregory D | U167: -MULTIPLE- | Y167: CFCU Checking | AA167: 132.03 | AE167: 591.25
I168: Paycheck | K168: 2026-05-01 | M168: 10682 | Q168: Arreguin, Daniel J | U168: -MULTIPLE- | Y168: CFCU Checking | AA168: 76.12 | AE168: 667.37
I169: Paycheck | K169: 2026-05-01 | M169: 10683 | Q169: Black, Curren M | U169: -MULTIPLE- | Y169: CFCU Checking | AA169: 87.08 | AE169: 754.45
I170: Paycheck | K170: 2026-05-01 | M170: 10684 | Q170: Hendershot, Elisa | U170: -MULTIPLE- | Y170: CFCU Checking | AA170: 52.16 | AE170: 806.61
I171: Paycheck | K171: 2026-05-01 | M171: 10685 | Q171: Little, Jamie L | U171: -MULTIPLE- | Y171: CFCU Checking | AA171: 239.08 | AE171: 1045.69
I172: Paycheck | K172: 2026-05-01 | M172: 10686 | Q172: Teasley, Gregory D | U172: -MULTIPLE- | Y172: CFCU Checking | AA172: 119.19 | AE172: 1164.88
F173: Total Company Taxes | AA173: =ROUND(SUM(AA162:AA172),5) -> 1164.88 | AC173: =ROUND(SUM(AC162:AC172),5) -> 0 | AE173: =AE172 -> 1164.88
F174: Mileage Reimb
I175: Paycheck | K175: 2026-04-01 | M175: 10672 | Q175: Teasley, Gregory D | U175: -MULTIPLE- | Y175: CFCU Checking | AA175: 70.47 | AE175: 70.47
I176: Paycheck | K176: 2026-05-01 | M176: 10683 | Q176: Black, Curren M | U176: -MULTIPLE- | Y176: CFCU Checking | AA176: 38.43 | AE176: 108.9
I177: Paycheck | K177: 2026-05-01 | M177: 10686 | Q177: Teasley, Gregory D | U177: -MULTIPLE- | Y177: CFCU Checking | AA177: 136.95 | AE177: 245.85
F178: Total Mileage Reimb | AA178: =ROUND(SUM(AA174:AA177),5) -> 245.85 | AC178: =ROUND(SUM(AC174:AC177),5) -> 0 | AE178: =AE177 -> 245.85
F179: Wages
I180: Paycheck | K180: 2026-04-01 | M180: 10668 | Q180: Arreguin, Daniel J | U180: -MULTIPLE- | Y180: CFCU Checking | AA180: 825 | AE180: 825
I181: Paycheck | K181: 2026-04-01 | M181: 10669 | Q181: Black, Curren M | U181: -MULTIPLE- | Y181: CFCU Checking | AA181: 713.63 | AE181: 1538.63
I182: Paycheck | K182: 2026-04-01 | M182: 10670 | Q182: Hendershot, Elisa | U182: -MULTIPLE- | Y182: CFCU Checking | AA182: 292.5 | AE182: 1831.13
I183: Paycheck | K183: 2026-04-01 | M183: 10671 | Q183: Little, Jamie L | U183: -MULTIPLE- | Y183: CFCU Checking | AA183: 2693.26 | AE183: 4524.39
I184: Paycheck | K184: 2026-04-01 | M184: 10672 | Q184: Teasley, Gregory D | U184: -MULTIPLE- | Y184: CFCU Checking | AA184: 1600.51 | AE184: 6124.9
I185: Paycheck | K185: 2026-05-01 | M185: 10682 | Q185: Arreguin, Daniel J | U185: -MULTIPLE- | Y185: CFCU Checking | AA185: 750 | AE185: 6874.9
I186: Paycheck | K186: 2026-05-01 | M186: 10683 | Q186: Black, Curren M | U186: -MULTIPLE- | Y186: CFCU Checking | AA186: 858 | AE186: 7732.9
I187: Paycheck | K187: 2026-05-01 | M187: 10684 | Q187: Hendershot, Elisa | U187: -MULTIPLE- | Y187: CFCU Checking | AA187: 513.76 | AE187: 8246.66
I188: Paycheck | K188: 2026-05-01 | M188: 10685 | Q188: Little, Jamie L | U188: -MULTIPLE- | Y188: CFCU Checking | AA188: 2551.5 | AE188: 10798.16
I189: Paycheck | K189: 2026-05-01 | M189: 10686 | Q189: Teasley, Gregory D | U189: -MULTIPLE- | Y189: CFCU Checking | AA189: 1558.06 | AE189: 12356.22
F190: Total Wages | AA190: =ROUND(SUM(AA179:AA189),5) -> 12356.22 | AC190: =ROUND(SUM(AC179:AC189),5) -> 0 | AE190: =AE189 -> 12356.22
E191: Total Payroll Expenses | AA191: =ROUND(AA173+AA178+AA190,5) -> 13766.95 | AC191: =ROUND(AC173+AC178+AC190,5) -> 0 | AE191: =ROUND(AE173+AE178+AE190,5) -> 13766.95
E192: Testing
F193: ELAP Cert Fees
I194: Bill | K194: 2026-04-01 | M194: 187614 | Q194: Microbac Laboratories | S194: ELAP Cert | U194: Water | Y194: Accounts Payable | AA194: 20 | AE194: 20
I195: Bill | K195: 2026-04-09 | M195: 187744 | Q195: Microbac Laboratories | S195: ELAP Cert | U195: wastewater | Y195: Accounts Payable | AA195: 10 | AE195: 30
I196: Bill | K196: 2026-05-07 | M196: 188230 | Q196: Microbac Laboratories | S196: ELAP Cert | U196: wastewater | Y196: Accounts Payable | AA196: 10 | AE196: 40
F197: Total ELAP Cert Fees | AA197: =ROUND(SUM(AA193:AA196),5) -> 40 | AC197: =ROUND(SUM(AC193:AC196),5) -> 0 | AE197: =AE196 -> 40
F198: Testing - Other
I199: Bill | K199: 2026-04-01 | M199: 187614 | Q199: Microbac Laboratories | S199: -MULTIPLE- | U199: Water | Y199: Accounts Payable | AA199: 240 | AE199: 240
I200: Bill | K200: 2026-04-09 | M200: 187744 | Q200: Microbac Laboratories | S200: -MULTIPLE- | U200: wastewater | Y200: Accounts Payable | AA200: 463 | AE200: 703
... 26 more rows
